bitfinex/quotes_ETHUSD_20250623
["timestamp","ask_amount","ask_price","bid_price","bid_amount"]
[1750700773719,10.0,2284.1,2281.8,5.53002715]
[1750700773720,10.5538,2283.5,2282.1,3.4121]
[1750700773917,10.5538,2283.5,2282.5,4.3810352]
[1750700773918,10.0,2283.3,2282.5,4.3810352]
[1750700774117,10.0,2283.3,2282.5,4.38114822]
[1750700774345,0.5538,2283.5,2282.5,4.38106639]
[1750700774542,2.648,2283.3,2282.5,1.27810664]
[1750700774707,0.5538,2283.5,2282.3,8.399]
[1750700774905,0.5538,2283.5,2282.9,4.38028307]
[1750700775139,0.5538,2283.5,2282.3,20.54959818]
[1750700775140,0.5538,2283.5,2282.6,4.38094375]
[1750700775332,0.5538,2283.5,2283.0,4.38006441]
[1750700775602,0.5538,2284.0,2283.0,4.38020148]
[1750700775834,0.5538,2284.0,2283.6,4.37895058]
[1750700776032,0.5538,2284.0,2283.6,4.37895814]
[1750700776360,0.5538,2284.0,2283.6,4.37895605]
[1750700776558,0.5538,2284.0,2283.5,4.37915215]
[1750700776763,0.5538,2284.0,2283.6,4.37904355]
[1750700777172,0.5538,2284.6,2283.6,0.87582589]
[1750700777373,10.0,2284.4,2283.7,4.37875534]
[1750700777671,10.0,2284.4,2283.7,4.37885886]
[1750700777971,10.0,2284.4,2283.9,4.37845806]
[1750700778141,10.0,2284.4,2283.6,0.87582589]
[1750700778341,0.5538,2284.2,2283.1,4.37990301]
[1750700778674,0.5538,2284.2,2283.0,4.38009422]
[1750700778888,2.648,2284.1,2283.3,4.37948776]
[1750700779091,0.5538,2284.2,2282.9,12.77439091]
[1750700779092,0.5538,2284.2,2283.1,4.37996346]
[1750700779295,0.5538,2284.2,2283.0,4.38020148]
[1750700779605,2.648,2284.1,2283.2,4.37968254]
[1750700779751,2.648,2284.1,2283.1,1.27742015]
[1750700779955,2.649,2284.0,2283.2,4.37971763]
[1750700780156,0.5538,2284.2,2283.2,4.37975906]
[1750700780362,2.649,2284.1,2283.4,4.37934311]
[1750700780562,0.5538,2284.2,2283.4,0.87590407]
[1750700780744,0.5538,2284.2,2283.9,4.37842001]
[1750700781159,0.5538,2284.6,2283.7,4.37885886]
[1750700781334,0.5538,2284.6,2283.7,0.8311]
[1750700781539,0.5538,2284.6,2283.8,4.37857771]
[1750700781940,0.5538,2284.6,2283.9,4.37838129]
[1750700782139,0.5538,2284.6,2283.9,6.17608719]
[1750700782877,0.5538,2284.6,2283.4,2.613]
[1750700782878,0.5538,2284.6,2283.4,0.8222]
[1750700783053,0.5538,2284.6,2283.8,4.37865999]
[1750700783401,0.5538,2284.6,2283.9,4.37841818]
[1750700783402,2.613,2284.5,2283.9,4.37841818]
[1750700783870,2.613,2284.5,2283.8,4.37851311]
[1750700784775,2.613,2284.5,2283.6,4.3790493]
[1750700784957,0.5538,2284.3,2283.1,0.7788]
[1750700785138,0.5538,2284.3,2283.3,12.76251864]
[1750700785339,0.5538,2284.3,2283.4,4.37941867]
[1750700785747,2.613,2284.2,2283.5,4.3792147]
[1750700785947,2.613,2284.2,2283.4,4.37931988]
[1750700786151,2.613,2284.2,2283.4,6.09352776]
[1750700786375,2.613,2284.2,2283.4,1.71420788]
[1750700786577,2.613,2284.2,2283.4,6.09362897]
[1750700786881,0.5538,2284.3,2283.4,6.09362897]
[1750700787076,0.5538,2284.3,2283.7,4.37879444]
[1750700787285,3.1668,2284.3,2283.9,4.37834783]
[1750700787587,0.5538,2284.3,2283.9,4.37847052]
[1750700787790,0.5538,2284.3,2284.0,4.37816819]
[1750700787974,2.613,2284.8,2283.9,4.37830113]
[1750700788181,0.5538,2284.7,2283.9,8.377]
[1750700788416,0.5538,2284.7,2284.0,5.2596525]
[1750700788569,10.5538,2284.7,2284.0,0.88148794]
[1750700788770,10.5538,2284.7,2284.0,5.2597621]
[1750700788995,10.5538,2284.7,2284.0,0.88148794]
[1750700789199,10.5538,2284.7,2284.0,5.25967228]
[1750700789493,10.5538,2284.7,2284.1,5.74175205]
[1750700789698,10.5538,2284.7,2284.1,1.36366723]
[1750700789906,10.5538,2284.7,2284.0,0.88148794]
[1750700790058,0.5538,2284.7,2284.0,5.25973924]
[1750700790254,10.0,2284.5,2283.7,8.373]
[1750700790454,11.04114739,2284.5,2283.7,8.373]
[1750700790656,11.04114739,2284.5,2283.3,0.769]
[1750700790657,1.59496743,2284.4,2283.4,6.09354978]
[1750700790925,0.42079674,2284.3,2283.4,6.09354978]
[1750700791065,1.1038,2284.2,2283.1,4.3799909]
[1750700791270,10.55,2284.2,2283.2,8.371]
[1750700791471,1.59496743,2284.1,2283.2,8.371]
[1750700791783,1.59496743,2284.1,2283.2,12.75080419]
[1750700791979,0.5538,2284.1,2283.4,4.37943159]
[1750700792158,3.1668,2284.1,2283.3,4.37946826]
[1750700792353,3.1668,2284.1,2283.3,1.71302214]
[1750700792354,1.04116743,2284.0,2283.3,1.71302214]
[1750700792602,1.04116743,2283.9,2283.2,12.75071498]
[1750700792771,1.04116743,2284.0,2283.2,12.75071498]
[1750700793104,1.04116743,2283.9,2283.2,12.75071498]
[1750700793262,1.04116743,2283.8,2283.2,4.37971498]
[1750700793463,3.1668,2284.1,2283.2,8.368]
[1750700793800,1.04523352,2284.0,2283.5,4.3791366]
[1750700793962,0.5538,2284.1,2283.5,4.37909244]
[1750700794599,0.5538,2284.1,2283.6,4.37897094]
[1750700794815,0.5538,2284.1,2283.5,4.37913843]
[1750700795119,0.5538,2284.1,2283.4,4.37943417]
[1750700795308,0.5538,2284.1,2283.2,12.74777731]
[1750700795309,0.5538,2284.1,2283.5,5.20463718]
[1750700795612,0.5538,2284.1,2283.5,0.43794342]
[1750700795814,0.5538,2284.1,2283.6,4.37903982]
[1750700796125,1.04552746,2284.3,2283.9,4.37845454]
[1750700796293,1.04552746,2284.3,2283.5,5.57747127]
[1750700796294,0.5538,2284.5,2284.1,4.37799518]
[1750700796483,0.5538,2284.5,2284.2,5.25340784]
[1750700797425,0.5538,2284.5,2284.2,0.87562036]
[1750700797581,0.5538,2284.5,2284.0,8.361]
[1750700797983,1.04625559,2284.4,2284.0,8.361]
[1750700798192,0.5538,2284.5,2284.0,8.361]
[1750700798429,1.04673453,2284.4,2284.0,12.73928185]
[1750700798719,0.5538,2284.5,2284.1,4.37809202]
[1750700798884,0.5538,2285.3,2284.2,4.37789455]
[1750700799086,3.66062376,2285.2,2284.2,4.37782774]
[1750700799282,1.60042376,2285.1,2284.1,1.2739092]
[1750700799482,1.1038,2284.9,2283.7,4.76640327]
[1750700799720,0.5538,2284.7,2283.8,8.357]
[1750700800048,1.04662376,2284.6,2283.8,12.73564238]
[1750700800184,1.04662376,2284.5,2283.9,4.37845626]
[1750700800543,0.5538,2284.7,2284.0,4.37820989]
[1750700800688,1.04664046,2284.6,2284.0,1.71136662]
[1750700800884,0.5538,2284.7,2284.0,1.71136662]
[1750700800885,0.5538,2284.7,2284.1,4.37800037]
[1750700801114,1.0465738,2284.6,2284.2,4.37789558]
[1750700801308,0.5538,2284.7,2284.1,4.37808025]
[1750700801622,1.04654374,2284.6,2283.7,12.73267465]
[1750700801823,0.5538,2284.4,2283.5,0.43794342]
[1750700802027,1.04654374,2284.3,2283.5,6.5100278]
[1750700802320,0.5538,2284.1,2283.4,8.351]
[1750700802509,0.5538,2284.1,2283.5,4.3791399]
[1750700802913,0.5538,2284.1,2283.4,12.73031784]
[1750700803994,0.5538,2284.1,2283.4,8.351]
[1750700804216,0.5538,2284.1,2283.8,4.37865089]
[1750700804429,0.5538,2284.4,2283.9,4.37843386]
[1750700804711,0.5538,2284.7,2284.2,4.37782827]
[1750700804920,1.0474761,2284.6,2284.3,4.37768877]
[1750700805121,1.0474761,2284.6,2283.8,5.18674865]
[1750700805122,0.5538,2284.7,2284.4,4.37742582]
[1750700805321,0.5538,2284.7,2284.3,8.346]
[1750700805522,0.5538,2284.7,2284.4,4.37748913]
[1750700806229,0.5538,2284.7,2284.4,1.7101308]
[1750700806390,0.5538,2284.7,2284.3,8.346]
[1750700807231,0.5538,2284.7,2284.4,4.37751286]
[1750700807440,0.5538,2284.7,2284.3,8.346]
[1750700807634,0.5538,2284.7,2284.3,12.72370818]
[1750700808209,0.5538,2284.7,2284.4,4.3774965]
[1750700808420,0.5538,2284.7,2284.3,8.346]
[1750700809599,0.5538,2284.7,2283.8,0.8081]
[1750700809806,1.04732648,2284.6,2284.2,8.338]
[1750700810019,0.5538,2284.7,2283.9,4.37836287]
[1750700810338,1.0474152,2284.6,2284.0,8.336]
[1750700810513,0.5538,2284.7,2284.0,13.98564525]
[1750700810723,1.04756221,2284.6,2284.1,4.37809202]
[1750700810915,0.5538,2284.7,2284.1,4.37809202]
[1750700811310,0.5538,2284.7,2284.3,4.37755602]
[1750700811762,0.5538,2284.7,2284.4,8.334]
[1750700814332,1.60120874,2284.7,2284.4,8.334]
[1750700814533,0.5538,2284.7,2284.4,8.334]
[1750700815610,0.5538,2284.7,2283.9,6.95537402]
[1750700815611,0.5538,2284.5,2283.2,0.8205]
[1750700815812,10.5538,2284.3,2283.3,8.328]
[1750700816032,15.03133337,2284.3,2283.4,6.12103065]
[1750700816232,1.04735777,2284.2,2283.4,1.35283028]
[1750700816432,1.60115777,2284.1,2283.4,8.324]
[1750700816640,0.55,2284.0,2282.1,12.83589704]
[1750700816841,1.04735777,2283.9,2283.2,0.8205]
[1750700817011,0.5538,2284.1,2283.5,4.37910933]
[1750700817219,0.5538,2284.1,2283.3,8.323]
[1750700817220,0.5538,2284.1,2283.6,4.37895545]
[1750700817464,0.5538,2284.1,2283.6,0.43789555]
[1750700817624,0.5538,2284.1,2283.6,12.70098203]
[1750700817828,0.5538,2284.1,2283.7,4.37871122]
[1750700818027,0.5538,2284.1,2283.7,4.37885886]
[1750700818417,0.5538,2284.1,2283.7,4.3787343]
[1750700818620,0.5538,2284.1,2283.7,1.70796951]
[1750700818832,0.5538,2284.1,2283.6,8.322]
[1750700819030,0.5538,2284.1,2283.6,17.0798149]
[1750700819229,0.5538,2284.1,2283.6,12.70086495]
[1750700819434,0.5538,2284.1,2283.7,4.37884616]
[1750700819633,0.5538,2284.1,2283.7,4.37885886]
[1750700819835,0.5538,2284.1,2283.7,1.27008589]
[1750700820034,0.5538,2284.1,2283.6,8.322]
[1750700820230,0.5538,2284.1,2283.5,8.318]
[1750700820442,1.04760352,2284.5,2283.6,4.76794286]
[1750700820443,0.5538,2284.4,2283.6,4.76794286]
[1750700820755,0.5538,2284.4,2284.0,4.37813876]
[1750700821063,0.5538,2284.7,2284.3,4.37758541]
[1750700821223,0.5538,2284.7,2284.3,4.37769804]
[1750700821419,0.5538,2284.7,2284.0,12.69512823]
[1750700821623,0.5538,2284.7,2284.1,8.315]
[1750700821855,0.5538,2284.7,2284.2,4.37789505]
[1750700822029,0.5538,2284.7,2284.2,4.37790035]
[1750700822542,0.5538,2284.7,2284.2,4.37788594]
[1750700822943,0.55,2284.6,2283.7,4.37866726]
[1750700823148,0.5538,2284.5,2283.8,8.313]
[1750700823318,1.60122351,2284.5,2283.9,4.37839173]
[1750700823518,1.60122351,2284.5,2283.8,8.313]
[1750700823519,0.5538,2284.5,2283.8,8.313]
[1750700823726,10.5538,2284.5,2283.8,8.313]
[1750700823978,0.5538,2284.4,2283.2,0.8119]
[1750700824154,1.04827906,2284.3,2283.6,8.311]
[1750700824336,0.5538,2284.2,2283.6,8.311]
[1750700824669,0.5538,2284.2,2283.6,12.69003299]
[1750700824886,0.5538,2284.2,2283.6,8.311]
[1750700825445,1.04827906,2284.1,2283.6,8.311]
[1750700825880,0.5538,2284.2,2283.6,8.311]
[1750700826240,1.60207906,2284.2,2283.6,8.311]
[1750700826436,0.5538,2284.2,2283.6,8.311]
[1750700827181,0.5538,2284.2,2283.6,12.68992254]
[1750700827367,0.5538,2284.2,2283.6,8.311]
[1750700827753,0.5538,2284.2,2283.6,12.69001811]
[1750700828053,0.5538,2284.2,2283.6,8.311]
[1750700828270,0.5538,2284.2,2283.6,8.305]
[1750700828510,0.5538,2284.0,2283.1,4.37999453]
[1750700828680,0.5538,2283.7,2282.6,4.38086467]
[1750700828883,1.04807382,2283.8,2283.0,12.97699818]
[1750700829094,0.5538,2284.3,2283.1,0.38949813]
[1750700829385,0.5538,2284.2,2283.1,8.302]
[1750700829551,0.5538,2284.2,2283.2,4.76931592]
[1750700829758,0.5538,2284.2,2283.4,4.37929843]
[1750700829987,0.5538,2284.2,2283.5,4.37923353]
[1750700830192,0.5538,2284.0,2283.4,8.301]
[1750700830688,0.5538,2284.0,2283.4,12.68034873]
[1750700830901,0.5538,2284.3,2283.4,8.301]
[1750700831045,0.5538,2284.3,2284.0,4.37815423]
[1750700831245,0.5538,2284.3,2284.1,8.299]
[1750700831562,2.577,2284.8,2284.1,8.299]
[1750700831563,0.5538,2284.7,2284.1,8.299]
[1750700831903,0.5538,2284.7,2284.2,4.37789958]
[1750700832108,0.5538,2284.7,2283.9,0.8067]
[1750700832338,0.5538,2284.7,2284.0,8.297]
[1750700832889,0.5538,2284.7,2283.5,1.7142]
[1750700833090,0.5538,2284.7,2283.8,4.37849729]
[1750700833318,0.5538,2284.7,2284.0,4.37815873]
[1750700833833,0.5538,2284.7,2283.9,4.37838557]
[1750700834138,0.5538,2284.7,2284.0,4.3782655]
[1750700834436,0.5538,2284.7,2284.0,5.25392996]
[1750700834621,0.5538,2284.7,2284.0,0.87566446]
[1750700834821,0.5538,2284.7,2283.8,4.37849449]
[1750700835028,1.60115095,2284.7,2284.1,8.295]
[1750700835197,0.5538,2284.7,2284.1,8.295]
[1750700835538,0.5538,2284.7,2284.1,12.67297039]
[1750700835827,0.5538,2284.7,2284.1,12.67293952]
[1750700836028,0.5538,2284.7,2284.2,1.70511344]
[1750700836236,0.5538,2284.7,2284.2,8.292]
[1750700836742,1.60115095,2284.7,2284.2,8.292]
[1750700836895,13.127,2284.6,2283.5,0.9075]
[1750700837101,0.55,2284.2,2282.9,0.8167]
[1750700837400,0.5538,2283.9,2282.7,4.38077714]
[1750700837639,0.55,2283.8,2282.8,0.38901036]
[1750700837840,0.5538,2283.5,2282.7,8.288]
[1750700838134,0.5538,2283.5,2282.7,10.1687]
[1750700838445,4.74542918,2285.1,2283.8,4.37866713]
[1750700838666,0.5538,2284.8,2283.9,8.288]
[1750700838864,1.60102278,2284.8,2284.0,4.37816856]
[1750700839050,0.5538,2284.8,2284.2,4.37782279]
[1750700839254,0.5538,2284.8,2283.5,0.8167]
[1750700839457,0.55,2284.6,2283.6,8.286]
[1750700839673,0.5538,2284.3,2283.2,0.8167]
[1750700839833,0.5538,2284.1,2283.4,4.37942635]
[1750700840034,0.5538,2284.1,2283.3,4.37955155]
[1750700840229,0.5538,2284.1,2283.5,4.37916168]
[1750700840469,0.5538,2284.1,2283.4,1.70442882]
[1750700840770,0.5538,2284.1,2283.5,4.37915437]
[1750700840970,0.5538,2284.1,2283.2,8.285]
[1750700841446,0.5538,2284.1,2283.5,4.37906008]
[1750700841782,0.5538,2284.1,2283.4,4.37935363]
[1750700841931,0.5538,2284.1,2283.6,8.283]
[1750700842566,0.5538,2284.1,2283.7,4.37882594]
[1750700842865,11.04722278,2284.5,2283.7,1.70408528]
[1750700843166,0.5538,2284.4,2283.8,4.37865941]
[1750700843467,0.5538,2284.4,2283.6,0.7852]
[1750700843672,0.5538,2284.4,2282.4,0.7852]
[1750700843673,10.5538,2283.7,2282.4,0.7852]
[1750700843880,0.5538,2283.4,2282.3,8.281]
[1750700844170,0.5538,2283.4,2282.7,4.38068033]
[1750700844371,0.5538,2283.4,2282.2,12.66165173]
[1750700844568,1.04722278,2283.3,2282.4,4.38126115]
[1750700844740,0.5538,2283.4,2282.5,0.43812612]
[1750700844950,1.60102278,2283.4,2282.5,0.43812612]
[1750700845267,0.5538,2283.4,2282.5,0.43812612]
[1750700845741,1.60102278,2283.4,2282.5,0.43812612]
[1750700845929,0.5538,2283.9,2282.7,0.55]
[1750700846128,0.5538,2283.9,2283.5,4.37908934]
[1750700846365,0.5538,2284.5,2283.6,8.281]
[1750700846566,0.5538,2284.5,2283.7,8.281]
[1750700847055,10.0,2284.4,2283.7,8.281]
[1750700847237,10.0,2284.2,2283.7,8.281]
[1750700847439,0.5538,2284.3,2283.7,8.281]
[1750700848779,2.545,2284.9,2283.0,4.3800628]
[1750700848780,0.5538,2284.1,2283.0,4.3800628]
[1750700848933,0.5538,2283.8,2282.8,4.38049436]
[1750700849134,12.15059818,2283.2,2282.1,5.19343627]
[1750700849474,0.5538,2283.1,2282.1,0.8116]
[1750700849847,0.5538,2283.1,2282.4,4.38125148]
[1750700850048,0.5538,2283.1,2282.4,4.38124696]
[1750700850244,0.5538,2283.1,2282.5,8.279]
[1750700851269,0.5538,2283.1,2282.5,14.18067184]
[1750700851474,0.5538,2283.1,2282.5,9.79953484]
[1750700851979,0.5538,2283.1,2282.5,8.279]
[1750700852352,0.5538,2283.1,2282.1,0.8116]
[1750700852353,0.5538,2283.1,2282.2,12.66065828]
[1750700852558,0.5538,2283.1,2282.2,8.279]
[1750700852752,0.5538,2282.9,2281.8,5.1885848]
[1750700852958,0.5538,2282.8,2281.9,8.279]
[1750700853263,1.27043982,2282.7,2281.9,8.279]
[1750700853672,0.5538,2282.6,2281.9,8.279]
[1750700854043,0.5538,2282.6,2281.5,0.8062]
[1750700854349,0.5538,2282.6,2281.8,4.38245971]
[1750700854557,0.5538,2282.6,2282.1,4.38182577]
[1750700854753,0.5538,2282.6,2282.0,4.38198544]
[1750700854955,0.5538,2282.6,2282.1,0.43819854]
[1750700855155,0.5538,2283.2,2282.3,4.38149436]
[1750700855393,0.5538,2283.2,2282.1,0.8302]
[1750700855548,0.5538,2282.9,2281.9,12.66121964]
[1750700855744,0.5538,2283.7,2282.3,4.93145118]
[1750700855976,0.5538,2283.7,2283.3,4.3795277]
[1750700856177,0.5538,2283.7,2283.4,8.279]
[1750700857579,12.70439818,2284.2,2283.4,8.279]
[1750700857782,1.1038,2283.8,2282.7,14.90463004]
[1750700857986,0.53,2282.4,2282.3,4.38154493]
[1750700858601,0.53,2282.4,2282.3,8.277]
[1750700858898,0.53,2282.4,2282.3,9.98105021]
[1750700859291,0.53,2282.4,2282.3,1.70405021]
[1750700859488,0.53,2282.4,2282.3,8.277]
[1750700859864,0.53,2282.4,2282.1,4.38182849]
[1750700860068,0.5538,2282.8,2282.2,12.65872765]
[1750700860400,0.5538,2282.8,2282.3,8.277]
[1750700860808,0.5538,2282.8,2282.3,12.65845711]
[1750700860972,0.5538,2282.8,2282.4,1.9585165]
[1750700861400,0.5538,2283.1,2282.5,4.38106189]
[1750700861903,0.5538,2283.1,2282.6,4.38094752]
[1750700862099,0.5538,2283.1,2282.7,4.38072393]
[1750700862318,0.5538,2283.1,2282.8,8.277]
[1750700864794,0.5538,2283.1,2282.2,4.38165867]
[1750700864993,0.5538,2282.9,2282.2,0.57314587]
[1750700865183,0.5538,2282.9,2279.8,2.16352836]
[1750700865184,12.15059818,2282.3,2280.3,0.7998]
[1750700865383,0.5538,2281.6,2280.4,8.276]
[1750700865585,0.5538,2281.6,2280.6,4.38476608]
[1750700865820,12.15059818,2281.4,2280.7,0.43847661]
[1750700865987,0.5538,2281.3,2280.4,12.66118472]
[1750700866181,0.5538,2281.3,2280.4,8.276]
[1750700866506,0.5538,2281.3,2280.4,12.66113396]
[1750700866698,0.5538,2281.3,2280.5,8.276]
[1750700866900,0.5538,2281.3,2280.5,9.7967134]
[1750700867302,0.5538,2281.3,2280.5,1.5207134]
[1750700867510,12.15059818,2281.1,2280.1,4.38568055]
[1750700867713,12.15059818,2281.1,2279.3,10.524]
[1750700867714,12.15059818,2280.8,2280.2,0.3661006]
[1750700868019,10.5538,2280.7,2280.2,0.3661006]
[1750700869019,10.5538,2280.7,2279.9,8.278]
[1750700869326,12.15059818,2280.2,2279.3,2.547]
[1750700869508,11.21505982,2280.1,2279.2,4.38748846]
[1750700869878,11.21505982,2280.1,2279.1,12.66558424]
[1750700869879,0.5538,2280.0,2279.1,12.66558424]
[1750700869990,0.5538,2280.0,2279.2,4.38746919]
[1750700870188,0.5538,2280.0,2279.1,12.66562016]
[1750700870516,0.5538,2280.0,2279.2,14.37282072]
[1750700870912,0.5538,2280.0,2279.2,9.98534381]
[1750700871116,0.5538,2280.0,2279.2,14.37282654]
[1750700871330,0.5538,2280.0,2279.0,4.38784091]
[1750700871331,0.5538,2280.0,2278.9,2.547]
[1750700871499,0.5538,2279.8,2278.7,10.7545122]
[1750700871699,0.55,2279.7,2278.8,8.28]
[1750700871897,0.5538,2279.6,2278.8,8.28]
[1750700872096,0.5538,2279.6,2278.9,8.28]
[1750700872305,10.91808,2279.6,2278.9,8.28]
[1750700872558,10.5538,2279.6,2278.9,8.28]
[1750700872889,0.55,2279.5,2278.9,8.28]
[1750700873517,0.55,2279.5,2278.7,8.5065122]
[1750700874053,10.5538,2279.6,2278.7,8.5065122]
[1750700874054,0.5538,2279.6,2278.7,8.5065122]
[1750700874244,0.5538,2279.6,2278.9,0.7641]
[1750700874528,0.5538,2280.6,2279.5,0.8126]
[1750700874711,0.5538,2280.6,2279.9,4.38606709]
[1750700875027,0.5538,2280.6,2280.1,4.38567223]
[1750700875225,10.5538,2280.6,2279.9,4.38604209]
[1750700875426,0.5538,2280.6,2279.9,4.38604209]
[1750700875631,0.5538,2280.6,2279.7,4.38654208]
[1750700875792,0.5538,2280.6,2279.6,8.281]
[1750700875793,0.5538,2280.4,2279.6,8.281]
[1750700876850,0.5538,2280.4,2279.3,4.3872288]
[1750700877045,0.5538,2280.4,2279.5,8.282]
[1750700877424,0.5538,2280.4,2279.3,4.38720357]
[1750700877732,0.5538,2280.4,2279.3,4.38730143]
[1750700877938,0.5538,2280.4,2279.4,12.66905546]
[1750700878101,0.5538,2280.4,2279.4,12.6690146]
[1750700878501,0.5538,2280.4,2279.4,8.282]
[1750700879234,0.55,2280.3,2279.4,8.282]
[1750700879434,0.55,2280.1,2279.4,8.282]
[1750700879823,1.1038,2279.8,2278.7,4.61283823]
[1750700880023,0.5538,2279.5,2278.7,8.5065122]
[1750700880839,0.5538,2279.4,2278.7,0.2245122]
[1750700881568,0.5538,2279.4,2278.7,14.45294842]
[1750700881714,0.5538,2279.8,2279.1,4.38757158]
[1750700881903,0.5538,2279.8,2279.6,4.38668353]
[1750700882116,3.0948,2280.8,2279.7,4.38642165]
[1750700882333,3.0948,2280.8,2279.4,9.0633]
[1750700882334,3.0948,2280.8,2279.8,4.38634685]
[1750700882539,0.5538,2280.7,2279.9,8.283]
[1750700882865,10.5538,2280.7,2279.9,8.283]
[1750700883075,1.30948,2280.6,2279.9,8.283]
[1750700883550,0.5538,2280.4,2278.7,0.9769122]
[1750700883726,0.55,2280.3,2278.9,4.38808196]
[1750700883911,0.55,2280.3,2278.8,8.282]
[1750700883912,0.53,2279.5,2279.1,4.38761514]
[1750700884114,0.53,2279.5,2279.2,0.87755035]
[1750700884350,0.53,2279.5,2279.2,4.38746178]
[1750700884551,0.53,2279.5,2279.2,4.38738355]
[1750700884755,0.53,2279.5,2279.2,4.38749328]
[1750700885124,0.53,2279.5,2279.1,4.38759191]
[1750700885331,0.53,2279.5,2279.2,4.38747252]
[1750700885623,0.53,2279.5,2279.3,4.38726005]
[1750700885850,0.53,2279.5,2279.4,4.38711941]
[1750700886063,0.5538,2280.1,2279.6,4.3865778]
[1750700886225,0.5538,2280.1,2279.2,2.45810644]
[1750700886429,0.5538,2280.1,2278.9,21.15734182]
[1750700886430,0.5538,2280.1,2278.9,4.38808196]
[1750700886766,0.55,2279.8,2279.0,8.281]
[1750700887071,0.5538,2279.9,2279.2,4.38750438]
[1750700887361,0.5538,2279.9,2278.7,5.36531464]
[1750700887563,0.55,2279.8,2278.8,12.66919843]
[1750700887737,0.5538,2279.7,2278.8,12.66919843]
[1750700887940,0.5538,2279.7,2278.7,3.5179122]
[1750700887941,0.5538,2279.7,2278.7,0.2245122]
[1750700888153,0.5538,2279.5,2278.7,0.2245122]
[1750700889268,11.66418,2279.5,2278.7,0.2245122]
[1750700889470,10.0,2279.5,2278.7,4.61288517]
[1750700889653,1.1038,2279.4,2278.7,0.2245122]
[1750700889861,2.13964404,2279.4,2278.7,0.2245122]
[1750700890043,0.5538,2279.4,2278.7,0.2245122]
[1750700890244,1.86328,2279.4,2278.7,0.2245122]
[1750700890738,1.30948,2279.4,2278.7,0.2245122]
[1750700890944,0.5538,2279.3,2278.7,0.2245122]
[1750700892950,0.55,2279.0,2278.7,0.2245122]
[1750700893282,10.55,2278.7,2277.1,4.39147043]
[1750700893483,0.55,2278.5,2277.2,4.75793863]
[1750700893692,1.03878109,2278.4,2277.2,0.36658291]
[1750700893978,14.22843622,2278.8,2277.2,0.36658291]
[1750700893979,10.55,2278.2,2277.2,0.36658291]
[1750700894148,0.3293,2277.9,2276.6,4.39251515]
[1750700894349,0.3293,2277.9,2277.0,4.39173753]
[1750700894551,1.36808109,2277.9,2277.0,0.8783499]
[1750700894750,0.3293,2277.9,2277.0,5.27001079]
[1750700895767,1.04280565,2277.5,2276.9,12.67289576]
[1750700895984,1.04280039,2277.4,2277.0,12.67171531]
[1750700896294,1.04231882,2277.6,2277.1,8.28]
[1750700896487,1.04231882,2277.5,2277.1,8.28]
[1750700896698,0.805,2277.7,2277.1,8.28]
[1750700896856,1.04214539,2278.1,2277.1,0.828]
[1750700897057,1.04214539,2278.1,2276.8,14.22843622]
[1750700897058,1.04214539,2278.0,2277.4,4.39096625]
[1750700897276,1.04214539,2277.9,2276.6,4.39251515]
[1750700897483,1.04230636,2277.8,2276.9,4.39178559]
[1750700897682,1.04230636,2277.8,2276.3,10.542]
[1750700897683,1.84730636,2277.7,2276.7,10.824]
[1750700897859,1.04230636,2277.6,2276.1,4.39348007]
[1750700898061,1.04230636,2277.5,2276.7,4.39220529]
[1750700898291,0.805,2277.7,2276.8,4.39212861]
[1750700898292,1.04230636,2277.4,2276.8,4.39212861]
[1750700898502,1.04230636,2277.3,2276.8,4.39212861]
[1750700898681,1.04230636,2277.6,2276.9,8.282]
[1750700898994,1.04230636,2277.5,2277.0,4.39164872]
[1750700899199,0.805,2277.7,2277.1,4.39137505]
[1750700899383,1.04161085,2277.6,2277.0,4.39168991]
[1750700899696,1.04121197,2277.6,2276.9,9.3644]
[1750700899859,0.805,2277.7,2277.2,4.39134196]
[1750700900201,0.805,2277.7,2277.3,8.283]
[1750700900494,1.04121197,2277.8,2277.3,8.283]
[1750700900666,0.7825,2278.1,2277.4,4.39085287]
[1750700900874,1.82371197,2278.1,2277.5,4.39072263]
[1750700901067,3.093,2278.8,2277.8,4.39011072]
[1750700901068,0.7825,2278.6,2277.8,4.39011072]
[1750700901272,1.82371197,2278.6,2278.1,4.38944979]
[1750700901614,0.7825,2278.6,2277.8,0.87805488]
[1750700901763,1.04121197,2278.5,2277.8,4.3900917]
[1750700901962,1.04121197,2278.4,2277.9,8.283]
[1750700902197,0.7825,2278.6,2277.9,8.283]
[1750700902403,1.04058767,2278.5,2277.9,8.283]
[1750700902700,1.04058767,2278.4,2277.5,4.39070756]
[1750700902906,0.7825,2278.6,2277.4,4.39079085]
[1750700902907,1.84558767,2278.3,2277.6,8.283]
[1750700903203,1.04058767,2278.2,2277.6,12.67341664]
[1750700903406,0.805,2278.3,2277.7,4.39037961]
[1750700903899,1.84558767,2278.3,2277.6,8.283]
[1750700904108,0.805,2278.3,2277.2,5.17744752]
[1750700904265,1.04058767,2278.5,2277.8,4.39020107]
[1750700904471,1.83808767,2279.0,2277.9,0.7928]
[1750700904664,0.7975,2279.0,2278.6,4.38851556]
[1750700904882,2.537,2279.5,2277.8,1.082]
[1750700904883,14.22843622,2279.1,2277.8,1.082]
[1750700905097,1.04058767,2279.0,2277.5,0.7545]
[1750700905309,1.04058767,2278.9,2277.5,0.7545]
[1750700905467,1.04058767,2278.8,2277.8,4.3900866]
[1750700905787,10.0,2277.9,2276.5,0.7545]
[1750700905998,1.82258767,2277.8,2277.0,4.39156336]
[1750700906304,1.04058767,2277.7,2277.4,4.39084916]
[1750700906600,1.04111645,2278.1,2277.5,10.819]
[1750700906806,1.04111645,2278.0,2277.6,10.0]
[1750700906959,0.782,2278.2,2277.8,4.39010564]
[1750700907400,0.782,2278.2,2277.9,15.20800397]
[1750700907620,0.782,2278.2,2277.9,10.818]